bitfinex-derivatives/quotes_BNBF0:USTF0_20250316
["timestamp","ask_amount","ask_price","bid_price","bid_amount"]
[1742124723264,0.33447612,597.95,596.46,1.45884214]
[1742124723462,0.33447612,597.95,596.47,1.07360081]
[1742124723668,0.33447612,597.95,596.46,1.22901732]
[1742124723866,0.33447612,597.95,596.44,0.33532291]
[1742124724064,0.33447612,597.95,596.45,1.07363871]
[1742124724261,0.33447612,597.95,596.44,0.33532291]
[1742124725168,0.33447612,597.95,596.45,1.07345953]
[1742124725475,0.33447612,597.95,596.44,0.33532291]
[1742124726573,0.33447612,597.95,596.44,0.32933989]
[1742124727573,0.33447612,597.95,595.37,1.24792032]
[1742124727776,0.31958592,597.95,595.85,0.33565494]
[1742124727970,0.31958592,597.95,595.94,0.2916417]
[1742124728168,0.31958592,597.95,595.95,3.17637997]
[1742124728371,0.31958592,597.95,595.96,3.17637997]
[1742124728577,0.31958592,597.95,595.97,1.45881558]
[1742124728879,0.31958592,597.95,595.98,1.45852032]
[1742124729174,0.31958592,597.95,595.99,1.45852032]
[1742124729475,0.31958592,597.95,595.99,1.22795543]
[1742124730068,0.31958592,597.95,595.86,0.29164414]
[1742124730373,0.31958592,597.95,595.87,3.17113077]
[1742124730579,0.31958592,597.95,595.88,3.17113077]
[1742124730773,0.31958592,597.95,595.89,3.47748614]
[1742124731073,2.52590673,597.7,595.9,6.35616048]
[1742124731270,2.52590673,597.7,595.91,1.45641827]
[1742124731468,2.52590673,597.7,595.9,3.18683243]
[1742124731769,2.52590673,597.7,595.88,1.189]
[1742124732168,2.52590673,597.7,595.89,1.2247778]
[1742124732368,2.52590673,597.81,595.89,1.2247778]
[1742124732867,2.52590673,597.81,595.88,1.189]
[1742124734774,2.52590673,597.84,595.88,1.189]
[1742124735970,0.29171993,597.83,595.88,1.189]
[1742124736879,0.33455445,597.81,595.88,1.189]
[1742124737271,0.33455445,597.81,595.89,0.33563241]
[1742124740377,0.33455445,597.81,595.9,0.30820037]
[1742124740576,0.33455445,597.81,595.91,0.33562115]
[1742124740973,0.33455445,597.81,595.92,2.66045669]
[1742124741179,0.33455445,597.81,595.93,0.33560988]
[1742124741883,2.52590673,597.75,595.93,0.33560988]
[1742124742180,0.33459923,597.73,595.93,0.33560988]
[1742124749480,2.82077639,597.73,595.93,0.33560988]
[1742124750277,2.82077639,597.73,595.94,1.21308452]
[1742124750680,2.82077639,597.73,595.93,0.33560988]
[1742124750884,2.82077639,597.73,595.94,1.74782043]
[1742124751086,2.82077639,597.73,595.95,1.74781307]
[1742124751384,2.82077639,597.73,595.96,2.35626997]
[1742124751684,2.82077639,597.73,595.97,4.05108556]
[1742124751880,2.82077639,597.73,595.98,2.35626997]
[1742124752085,2.82077639,597.73,595.99,2.35626997]
[1742124752385,2.82077639,597.73,596.0,4.05115227]
[1742124752386,2.48617716,597.7,596.0,4.05115227]
[1742124752583,2.48617716,597.7,596.01,1.29690135]
[1742124752786,2.48617716,597.7,596.02,4.05101038]
[1742124752979,2.48617716,597.7,596.03,5.50916424]
[1742124753183,2.48617716,597.7,596.04,2.35617405]
[1742124753387,2.48617716,597.7,596.05,1.74771715]
[1742124753585,2.48617716,597.7,596.06,1.74771715]
[1742124753886,2.48617716,597.7,596.07,0.3081276]
[1742124754086,2.48617716,597.63,596.05,0.3081276]
[1742124754279,2.48617716,597.63,595.93,0.33560988]
[1742124754480,2.48617716,597.63,595.94,2.35659844]
[1742124754686,2.48617716,597.63,595.95,1.7479852]
[1742124754887,2.48617716,597.63,595.96,1.7479852]
[1742124755187,2.48617716,597.63,595.97,1.7479852]
[1742124755388,2.48617716,597.63,595.98,1.74803264]
[1742124755588,2.48617716,597.63,595.93,0.33560988]
[1742124755589,2.48617716,597.54,595.99,2.58067383]
[1742124755788,2.48617716,597.54,596.0,1.74803468]
[1742124755991,0.33471122,597.53,596.01,0.64367111]
[1742124756184,0.33471122,597.53,596.02,0.64366548]
[1742124756391,0.33471122,597.53,596.03,0.64365985]
[1742124756587,0.33471122,597.53,596.04,0.64365422]
[1742124756783,0.33471122,597.53,596.05,0.30810628]
[1742124757096,0.33471122,597.53,596.06,0.33553669]
[1742124757097,2.82088838,597.53,596.06,0.33553669]
[1742124757696,2.82088838,597.53,596.07,0.30807314]
[1742124758092,2.82088838,597.53,596.08,1.21342608]
[1742124758488,2.82088838,597.53,596.06,0.33553669]
[1742124758691,0.33471122,597.53,596.06,0.33553669]
[1742124763502,2.82088838,597.53,596.06,0.33553669]
[1742124764903,2.48617716,597.43,596.06,0.33553669]
[1742124765100,0.33477285,597.42,596.06,0.33553669]
[1742124766604,2.48617716,597.38,596.06,0.33553669]
[1742124766805,0.33480087,597.37,596.06,0.33553669]
[1742124773106,2.48617716,597.12,596.06,0.33553669]
[1742124773311,0.33494665,597.11,596.06,0.33553669]
[1742124777015,0.33494665,597.11,595.75,0.924]
[1742124778016,2.48617716,597.1,595.75,0.924]
[1742124778212,0.33496348,597.08,595.75,0.924]
[1742124784818,0.33496348,597.08,595.76,1.79145793]
[1742124785015,0.33496348,597.08,595.77,1.07116362]
[1742124785221,0.33496348,597.08,595.77,1.22640597]
[1742124785428,0.33496348,597.08,595.78,1.0717128]
[1742124785623,0.33496348,597.08,595.79,1.07171013]
[1742124785923,0.33496348,597.08,595.8,1.07166165]
[1742124786119,0.33496348,597.08,595.81,1.45652893]
[1742124786323,0.33496348,597.08,595.82,2.68292725]
[1742124786519,0.33496348,597.08,595.83,4.09567545]
[1742124786722,0.33496348,597.08,595.84,3.78749497]
[1742124787024,0.33496348,597.08,595.85,7.28582886]
[1742124787326,0.33496348,597.08,595.86,4.43132476]
[1742124787625,0.33496348,597.08,595.87,7.62145749]
[1742124787824,0.33496348,597.08,595.88,4.12315685]
[1742124788022,0.33496348,597.08,595.89,4.0956604]
[1742124788319,2.48617716,597.61,595.9,4.09563077]
[1742124788523,2.48617716,597.61,595.91,4.09563077]
[1742124788524,0.33467762,597.59,595.91,4.09563077]
[1742124788825,2.48617716,597.58,595.92,4.09563077]
[1742124789019,2.48617716,597.58,595.93,4.09563077]
[1742124789221,2.48617716,597.58,595.94,1.79212553]
[1742124789417,0.33469442,597.56,595.95,1.40726027]
[1742124789625,0.33469442,597.56,595.96,2.63366061]
[1742124789820,0.33469442,597.56,595.97,1.07166165]
[1742124790033,0.33469442,597.56,595.98,0.33558173]
[1742124790223,2.48617716,597.46,595.99,2.29806762]
[1742124790421,2.48617716,597.46,596.0,1.45647293]
[1742124790621,2.48617716,597.46,596.01,1.45647293]
[1742124790823,2.48617716,597.46,596.02,2.6828789]
[1742124791020,2.48617716,597.46,596.03,1.07166165]
[1742124791223,2.48617716,597.46,596.02,1.22640597]
[1742124791425,2.48617716,597.46,595.98,0.33558173]
[1742124791826,0.33469442,597.56,595.98,0.33558173]
[1742124793627,2.48617716,597.36,595.98,0.33558173]
[1742124794529,0.33481769,597.34,595.98,0.33558173]
[1742124795733,2.48617716,597.26,595.98,0.33558173]
[1742124795924,0.33487375,597.24,595.98,0.33558173]
[1742124800534,0.33487375,597.24,595.5,0.29186673]
[1742124800736,0.33487375,597.24,595.51,1.40779607]
[1742124800929,0.33487375,597.24,595.52,1.40779043]
[1742124801133,0.33487375,597.24,595.53,0.3358353]
[1742124802136,0.33487375,597.24,595.54,1.45650359]
[1742124802333,0.33487375,597.24,595.55,1.79232761]
[1742124802534,2.48617716,596.82,595.56,1.79232197]
[1742124802732,2.48617716,596.82,595.57,1.40753053]
[1742124803030,2.48617716,596.82,595.58,0.33580711]
[1742124803934,2.48617716,597.15,595.58,0.33580711]
[1742124804230,0.33493544,597.13,595.58,0.33580711]
[1742124809736,0.33493544,597.13,595.59,1.07011793]
[1742124809938,0.33493544,597.13,595.6,1.07005528]
[1742124810135,0.33493544,597.13,595.6,1.22518899]
[1742124810332,0.33493544,597.13,595.58,0.33580711]
[1742124811031,0.33493544,597.13,595.59,1.45414261]
[1742124811230,0.33493544,597.13,595.6,1.06983342]
[1742124811431,0.33493544,597.13,595.59,1.22506763]
[1742124811736,0.33493544,597.13,595.6,1.40568026]
[1742124811935,0.33493544,597.13,595.61,1.06988443]
[1742124812136,0.33493544,597.13,595.62,2.29495206]
[1742124812337,0.33493544,597.13,595.62,1.22506763]
[1742124812832,0.33493544,597.13,595.6,0.33579583]
[1742124813037,0.33493544,597.13,595.52,1.194]
[1742124816942,2.8211126,597.13,595.52,1.194]
[1742124818441,0.33493544,597.13,595.52,1.194]
[1742124820341,0.33493544,597.13,595.53,0.3358353]
[1742124820544,0.33493544,597.13,595.54,1.06876265]
[1742124820842,0.33493544,597.13,595.53,0.3358353]
[1742124826442,2.48617716,596.96,595.53,0.3358353]
[1742124826645,0.33504204,596.94,595.53,0.3358353]
[1742124827943,2.48617716,596.9,595.53,0.3358353]
[1742124828547,0.33507572,596.88,595.53,0.3358353]
[1742124829148,0.33507572,596.88,595.52,1.194]
[1742124830251,2.48617716,596.64,595.52,1.194]
[1742124831645,0.33522174,596.62,595.52,1.194]
[1742124836653,2.48617716,596.6,595.52,1.194]
[1742124836954,0.33524422,596.58,595.52,1.194]
[1742124839251,2.82142138,596.58,595.52,1.194]
[1742124842663,0.33524422,596.58,595.52,1.194]
[1742124871686,0.33524422,596.58,595.52,1.52984094]
[1742124872388,0.33524422,596.58,595.53,0.3358353]
[1742124873789,2.48617716,597.28,595.53,0.3358353]
[1742124873982,0.33486253,597.26,595.53,0.3358353]
[1742124874987,0.33486253,597.26,595.53,1.2368353]
[1742124875690,0.33486253,597.26,595.54,1.07308141]
[1742124875985,0.33486253,597.26,595.55,1.07308141]
[1742124876187,0.33486253,597.26,595.56,2.63741316]
[1742124876384,0.33486253,597.26,595.56,1.56433175]
[1742124876685,0.33486253,597.26,595.57,1.40856171]
[1742124876888,0.33486253,597.26,595.58,2.30126233]
[1742124877087,0.33486253,597.26,595.58,1.22851337]
[1742124877287,0.33486253,597.26,595.57,0.33581275]
[1742124881788,0.33486253,597.26,595.57,0.33581275]
[1742124886098,2.48617716,597.24,595.57,0.33581275]
[1742124886298,0.33488496,597.22,595.57,0.33581275]
[1742124892293,2.48617716,597.09,595.57,0.33581275]
[1742124892895,0.33496909,597.07,595.57,0.33581275]
[1742124894301,2.48617716,597.04,595.57,0.33581275]
[1742124894501,0.33499715,597.02,595.57,0.33581275]
[1742124895997,2.48617716,597.0,595.57,0.33581275]
[1742124896201,0.33501959,596.98,595.57,0.33581275]
[1742124898502,2.48617716,596.85,595.57,0.33581275]
[1742124898803,0.33509818,596.84,595.57,0.33581275]
[1742124900201,2.48617716,596.66,595.57,0.33581275]
[1742124903004,2.48617716,596.67,595.57,0.33581275]
[1742124904403,2.48617716,596.73,595.57,0.33581275]
[1742124904905,2.48617716,596.73,595.58,1.07434881]
[1742124905105,2.48617716,596.73,595.59,1.07432929]
[1742124905401,2.48617716,596.73,595.6,1.41012512]
[1742124905601,2.48617716,596.73,595.61,1.23010893]
[1742124905999,0.33509818,596.84,595.61,1.23010893]
[1742124906400,0.33509818,596.84,595.6,0.33579583]
[1742124913206,0.33509818,596.84,595.61,1.46408408]
[1742124913410,0.33509818,596.84,595.62,3.80626284]
[1742124913612,0.33509818,596.84,595.63,3.80626284]
[1742124913812,0.33509818,596.84,595.64,4.14203612]
[1742124914006,0.33509818,596.84,595.65,4.14203048]
[1742124914211,0.33509818,596.84,595.66,4.14081018]
[1742124914407,0.33509818,596.84,595.67,4.14080454]
[1742124914611,0.33509818,596.84,595.68,4.1407989]
[1742124914819,0.33509818,596.84,595.69,7.34057211]
[1742124915020,0.33509818,596.84,595.7,3.51896565]
[1742124915215,0.33509818,596.84,595.71,3.18322619]
[1742124915420,0.33509818,596.84,595.72,3.51895438]
[1742124915619,0.33509818,596.84,595.73,1.79917214]
[1742124915819,0.33509818,596.84,595.74,1.46344959]
[1742124916012,0.33509818,596.84,595.75,1.46344959]
[1742124916218,0.33509818,596.84,595.76,2.30561427]
[1742124916514,0.33509818,596.84,595.76,1.23075389]
[1742124917122,0.33509818,596.84,595.73,0.33572255]
[1742124928435,0.33509818,596.84,594.64,1.23415487]
[1742124928436,0.33509818,596.84,594.69,1.23415487]
[1742124928637,0.33509818,596.84,595.29,0.2919855]
[1742124928936,0.33509818,596.84,595.3,4.14890973]
[1742124929136,0.33509818,596.84,595.31,4.14890409]
[1742124929331,0.33509818,596.84,595.32,7.35518214]
[1742124929538,0.33509818,596.84,595.33,4.1488928]
[1742124929837,0.33509818,596.84,595.34,4.14888716]
[1742124930036,0.33509818,596.84,595.35,4.14888152]
[1742124930238,0.33509818,596.84,595.36,4.14887588]
[1742124930438,0.33509818,596.84,595.37,4.14887023]
[1742124930638,0.33509818,596.84,595.38,4.14886459]
[1742124930840,0.33509818,596.84,595.39,4.14885895]
[1742124931138,0.33509818,596.84,595.4,3.81294468]
[1742124931338,0.33509818,596.84,595.41,4.14884767]
[1742124931535,0.33509818,596.84,595.42,7.35512571]
[1742124931738,0.33509818,596.84,595.43,3.81294468]
[1742124932036,0.33509818,596.84,595.44,4.14883074]
[1742124932238,0.33509818,596.84,595.45,4.1488251]
[1742124932438,0.33509818,596.84,595.46,7.35510315]
[1742124932632,0.33509818,596.84,595.47,4.14881382]
[1742124932836,0.33509818,596.84,595.46,3.20628369]
[1742124932837,0.33509818,596.84,595.48,4.14880818]
[1742124933035,0.33509818,596.84,595.49,4.14880254]
[1742124933338,0.33509818,596.84,595.5,7.35508059]
[1742124933531,0.33509818,596.84,595.51,4.14879126]
[1742124933735,0.33509818,596.84,595.52,3.81294468]
[1742124934038,0.33509818,596.84,595.53,4.14877998]
[1742124934242,0.33509818,596.84,595.54,4.14877434]
[1742124934538,0.33509818,596.84,595.55,4.1487687]
[1742124934730,0.33509818,596.84,595.56,4.14876306]
[1742124934934,0.33509818,596.84,595.57,3.81294468]
[1742124935135,0.33509818,596.84,595.56,0.33581838]
[1742124935136,0.33509818,596.84,595.58,4.14875179]
[1742124935335,0.33509818,596.84,595.59,4.14874615]
[1742124935536,0.33509818,596.84,595.6,3.81294468]
[1742124935733,0.33509818,596.84,595.59,0.33580147]
[1742124935734,0.33509818,596.84,595.61,3.81294468]
[1742124935940,0.33509818,596.84,595.62,3.18966181]
[1742124936137,0.33509818,596.84,595.63,3.81307655]
[1742124936338,0.33509818,596.84,595.64,3.81307655]
[1742124936634,0.33509818,596.84,595.65,7.01936024]
[1742124936835,0.33509818,596.84,595.66,4.14883856]
[1742124937036,0.33509818,596.84,595.67,3.81307655]
[1742124937235,0.33509818,596.84,595.68,4.14882728]
[1742124937436,0.33509818,596.84,595.69,4.14882165]
[1742124937637,0.33509818,596.84,595.7,3.81307655]
[1742124937838,0.33509818,596.84,595.71,4.12699047]
[1742124938038,0.33509818,596.84,595.72,7.33326852]
[1742124938241,0.33509818,596.84,595.73,4.12697919]
[1742124938538,0.33509818,596.84,595.74,3.1678419]
[1742124938738,0.33509818,596.84,595.75,3.1678419]
[1742124938939,0.33509818,596.84,595.76,1.45809437]
[1742124939139,0.33509818,596.84,595.77,1.45809437]
[1742124939441,0.33509818,596.84,595.78,3.16721968]
[1742124939740,0.33509818,596.84,595.79,3.16721968]
[1742124939938,0.33509818,596.84,595.8,1.45809437]
[1742124940139,0.33509818,596.84,595.81,2.6912804]
[1742124940439,0.33509818,596.84,595.82,1.45809437]
[1742124940640,0.33509818,596.84,595.83,1.45809437]
[1742124940840,0.33509818,596.84,595.84,1.0685922]
[1742124941037,0.33509818,596.84,595.85,1.0685922]
[1742124941240,0.33509818,596.84,595.86,1.0685922]
[1742124941542,0.33509818,596.84,595.86,1.23318603]
[1742124941940,0.33509818,596.84,595.87,1.23318603]
[1742124942940,0.33509818,596.84,595.78,0.33569438]
[1742124943138,0.33509818,596.84,595.79,1.45613394]
[1742124943338,0.33509818,596.84,595.8,4.9926748]
[1742124943546,0.33509818,596.84,595.81,1.79181142]
[1742124943846,0.33509818,596.84,595.82,3.02290491]
[1742124944046,0.33509818,596.84,595.83,1.79180015]
[1742124944344,0.33509818,596.84,595.84,1.40301524]
[1742124944545,0.33509818,596.84,595.85,1.06735466]
[1742124944739,0.33509818,596.84,595.84,0.33566058]
[1742124944939,0.33509818,596.84,595.86,1.23109913]
[1742124945540,0.33509818,596.84,595.84,0.33566058]
[1742124945741,0.33509818,596.84,595.85,1.06659229]
[1742124945942,0.33509818,596.84,595.84,0.33566058]
[1742124949149,0.33509818,596.84,594.38,1.23415487]
[1742124949349,0.33509818,596.84,595.12,0.29212398]
[1742124949547,0.33509818,596.84,595.13,3.78600046]
[1742124949745,0.33509818,596.84,595.14,3.78600046]
[1742124949946,0.33509818,596.84,595.15,3.78600046]
[1742124950142,0.33509818,596.84,595.16,3.78600046]
[1742124950342,0.33509818,596.84,595.17,3.4996411]
[1742124950655,0.33509818,596.84,595.18,3.49884812]
[1742124950847,0.33509818,596.84,595.19,3.16281533]
[1742124951047,0.33509818,596.84,595.2,3.16281533]
[1742124951351,0.33509818,596.84,595.21,1.06717445]
[1742124951554,0.33509818,596.84,595.22,1.06717445]
[1742124951848,0.33509818,596.84,595.23,1.79098128]
[1742124952051,0.33509818,596.84,595.24,2.68598645]
[1742124952249,0.33509818,596.84,595.25,1.06631114]
[1742124952445,0.33509818,596.84,595.24,1.23111194]
[1742124952649,0.33509818,596.84,595.25,2.29708707]
[1742124952850,0.33509818,596.84,595.26,1.06596637]
[1742124953053,0.33509818,596.84,595.25,1.23111194]
[1742124953248,0.33509818,596.84,595.26,1.06595567]
[1742124953458,0.33509818,596.84,595.27,1.06568249]
[1742124953659,0.33509818,596.84,595.28,1.06568249]
[1742124953854,0.33509818,596.84,595.29,1.06568249]
[1742124954054,0.33509818,596.84,595.26,1.23111194]
[1742124954251,0.33509818,596.84,595.27,1.0656613]
[1742124954553,0.33509818,596.84,595.27,1.23111194]
[1742124955047,0.33509818,596.84,595.28,1.23111194]
[1742124955752,0.33509818,596.84,595.26,0.33598763]
[1742124956150,0.33509818,596.84,595.27,1.22890102]
[1742124957048,0.33509818,596.84,595.26,0.33598763]
[1742124961351,0.33509818,596.84,595.27,1.063841]
[1742124961555,0.33509818,596.84,595.28,1.063841]
[1742124961755,0.33509818,596.84,595.29,2.678489]
[1742124961950,0.33509818,596.84,595.29,1.22703226]
[1742124962357,0.33509818,596.84,595.3,1.22703226]
[1742124962558,0.33509818,596.84,595.31,1.22703226]
[1742124963156,0.33509818,596.84,595.32,1.22703226]
[1742124963458,0.33509818,596.84,595.33,1.22703226]
[1742124963857,0.33509818,596.84,595.34,1.22703226]
[1742124964559,0.33509818,596.84,595.35,1.22703226]
[1742124965157,0.33509818,596.84,595.36,1.45074782]
[1742124965358,0.33509818,596.84,595.37,1.06333199]
[1742124965559,0.33509818,596.84,595.36,1.22703226]
[1742124965560,0.33509818,596.84,595.38,1.78662428]
[1742124965753,0.33509818,596.84,595.39,3.0136509]
[1742124965957,0.33509818,596.84,595.4,1.786613]
[1742124966159,0.33509818,596.84,595.41,1.45070437]
[1742124966461,0.33509818,596.84,595.42,1.06333199]
[1742124966661,0.33509818,596.84,595.43,1.22703226]
[1742124966857,0.33509818,596.84,595.44,0.33588606]
[1742124967062,0.33509818,596.84,595.44,1.56291832]
[1742124967665,0.33509818,596.84,595.44,0.33588606]
[1742124974773,2.48617716,596.8,595.15,1.014]
[1742124976168,0.33509818,596.84,595.15,1.014]
[1742124976169,2.48617716,596.65,595.15,1.014]
[1742124976769,0.33521613,596.63,595.15,1.014]
[1742124981877,0.33521613,596.63,595.15,1.35004973]
[1742124982079,0.33521613,596.63,595.16,0.33604408]
[1742124983481,0.33521613,596.63,595.17,1.44687205]
[1742124983679,0.33521613,596.63,595.18,1.44687205]
[1742124983879,0.33521613,596.63,595.19,1.44687205]
[1742124984079,0.33521613,596.63,595.2,1.44687205]
[1742124984279,0.33521613,596.63,595.21,1.44687205]
[1742124984481,0.33521613,596.63,595.22,2.67003905]
[1742124984685,0.33521613,596.63,595.23,1.78287661]
[1742124984881,0.33521613,596.63,595.24,1.44687205]
[1742124985083,0.33521613,596.63,595.25,1.44687205]
[1742124985283,0.33521613,596.63,595.26,1.44687205]
[1742124985478,0.33521613,596.63,595.27,2.67003905]
[1742124985783,0.33521613,596.63,595.28,1.78274744]
[1742124985979,0.33521613,596.63,595.29,1.4467711]
[1742124986182,0.33521613,596.63,595.3,1.223167]
[1742124986884,0.33521613,596.63,595.28,0.33597634]
[1742124988487,2.48617716,596.62,595.28,0.33597634]
[1742124989283,0.33522736,596.61,595.28,0.33597634]
[1742124990595,2.82140452,596.61,595.28,0.33597634]
[1742124992690,0.33522736,596.61,595.28,0.33597634]
[1742124994693,0.33522736,596.61,594.9,0.29216813]
[1742124994892,0.33522736,596.61,594.91,0.3361853]
[1742124995193,2.48617716,596.45,594.91,0.3361853]
[1742124995987,2.48617716,596.45,594.91,1.5861853]
[1742124996389,2.48617716,596.45,594.92,1.44695023]
[1742124996593,2.48617716,596.45,594.91,1.5861853]
[1742124996790,2.48617716,596.45,594.92,1.78315859]
[1742124997095,2.48617716,596.45,594.93,2.40166841]
[1742124997305,0.33532291,596.44,594.94,3.7619188]
[1742124997492,0.33532291,596.44,594.95,1.44697894]
[1742124997796,0.33532291,596.44,594.96,1.78313599]
[1742124998096,0.33532291,596.44,594.97,1.78319244]
[1742124998296,0.33532291,596.44,594.98,1.06075123]
[1742124998496,0.33532291,596.44,594.97,0.3361514]
[1742125000698,2.48617716,596.39,594.97,0.3361514]
[1742125001100,0.33536227,596.37,594.97,0.3361514]
[1742125013309,2.48617716,596.29,594.91,1.25]
[1742125013510,0.33541851,596.27,594.91,1.25]
[1742125020512,2.48617716,596.26,594.91,1.25]
[1742125022914,0.33541851,596.27,594.91,1.25]
[1742125022915,2.48617716,596.02,594.91,1.25]
[1742125025017,2.48617716,596.05,594.91,1.25]
[1742125025417,0.33554794,596.04,594.91,1.25]
[1742125031222,2.48617716,595.97,594.91,1.25]
[1742125031620,0.33559299,595.96,594.91,1.25]
[1742125032724,2.48617716,595.95,594.91,1.25]
[1742125032924,0.33560988,595.93,594.91,1.25]
[1742125051246,2.82178704,595.93,594.91,1.25]
[1742125053540,0.33560988,595.93,594.91,1.25]
[1742125062657,2.48617716,595.71,594.91,1.25]
[1742125063061,0.33573946,595.7,594.91,1.25]
[1742125064863,2.48617716,595.57,594.91,1.25]
[1742125065153,2.48617716,595.57,593.19,0.71675691]
[1742125065363,2.48617716,595.57,593.2,4.80445522]
[1742125065564,2.48617716,595.57,593.31,0.3370919]
[1742125065754,2.48617716,595.57,593.32,7.99945865]
[1742125065968,2.48617716,595.57,593.33,8.14126845]
[1742125066263,2.48617716,595.57,593.34,4.80445522]
[1742125066555,2.48617716,595.67,593.4,1.23415487]
[1742125066754,2.48617716,595.67,593.41,4.08769831]
[1742125066951,2.48617716,595.67,593.42,4.08769831]
[1742125067160,2.48617716,595.67,593.43,4.08769831]
[1742125067359,2.48617716,595.67,593.44,4.08769831]
[1742125067653,2.48617716,595.67,593.45,7.28270174]
[1742125067868,2.48617716,595.67,593.46,4.80415018]
[1742125068156,2.48617716,595.67,593.47,4.08766248]
[1742125068356,0.33573946,595.7,593.48,4.08766248]
[1742125068557,0.33573946,595.7,593.49,4.08766248]
[1742125068752,0.33573946,595.7,593.5,4.08766248]
[1742125068952,0.33573946,595.7,593.6,0.33692722]
[1742125069155,0.33573946,595.7,593.61,4.08766248]
[1742125069356,0.33573946,595.7,593.62,4.08766248]
[1742125069557,0.33573946,595.7,593.72,0.33685912]
[1742125069753,0.33573946,595.7,593.73,4.08766248]
[1742125069953,0.33573946,595.7,593.75,0.3368421]
[1742125070161,0.33573946,595.7,593.76,4.08766248]
[1742125070359,0.33573946,595.7,593.78,0.33682508]
[1742125070559,0.33573946,595.7,593.79,4.08766248]
[1742125070759,0.33573946,595.7,593.81,0.33680806]
[1742125070958,0.33573946,595.7,593.82,4.08766248]
[1742125071154,0.33573946,595.7,593.83,4.08928283]
[1742125071355,0.33573946,595.7,593.85,0.33678538]
[1742125071560,0.33573946,595.7,593.86,4.08928283]
[1742125071856,0.33573946,595.7,593.88,0.33676837]
[1742125072061,0.33573946,595.7,593.89,4.08928283]
[1742125072362,0.33573946,595.7,593.91,0.33675135]
[1742125072562,0.33573946,595.7,593.92,3.78032452]
[1742125072867,0.33573946,595.7,593.93,7.28906395]
[1742125073062,0.33573946,595.7,593.95,0.33672868]
[1742125073273,0.33573946,595.7,593.96,4.09533626]
[1742125073568,0.33573946,595.7,593.97,4.09533626]
[1742125073766,0.33573946,595.7,593.99,0.336706]
[1742125073964,0.33573946,595.7,594.0,4.09533626]
[1742125074163,0.33573946,595.7,594.02,0.336689]
[1742125074364,0.33573946,595.7,594.03,3.78642261]
[1742125074565,0.33573946,595.7,594.05,0.33667199]
[1742125074760,0.33573946,595.7,594.06,3.78642261]
[1742125074968,0.33573946,595.7,594.08,0.33665499]
[1742125075273,0.33573946,595.7,594.09,4.09535003]
[1742125075467,0.33573946,595.7,594.11,0.33663799]
[1742125075658,0.33573946,595.7,594.12,4.09535003]
[1742125075863,0.33573946,595.7,594.14,0.33662099]
[1742125076059,0.33573946,595.7,594.15,4.09535003]
[1742125076363,0.33573946,595.7,594.16,4.09535003]
[1742125076568,0.33573946,595.7,594.17,4.12302661]
[1742125076865,0.33573946,595.7,594.18,3.78642261]
[1742125077062,0.33573946,595.7,594.19,3.78642261]
[1742125077268,0.33573946,595.7,594.21,0.33658134]
[1742125077471,0.33573946,595.7,594.22,3.78734717]
[1742125077668,0.33573946,595.7,594.23,4.12391718]
[1742125077968,0.33573946,595.7,594.24,4.12391152]
[1742125078161,0.33573946,595.7,594.25,4.12390585]
[1742125078477,0.33573946,595.7,594.26,4.12390019]
[1742125078668,0.33573946,595.7,594.24,3.19982578]
[1742125078669,0.33573946,595.7,594.28,0.33654169]
[1742125078868,0.33573946,595.7,594.29,3.78734717]
[1742125079069,0.33573946,595.7,594.3,3.78734717]
[1742125079370,0.33573946,595.7,594.32,0.33651904]
[1742125079568,0.33573946,595.7,594.33,3.7878344]
[1742125079767,0.33573946,595.7,594.35,0.33650206]
[1742125079964,0.33573946,595.7,594.36,3.7878344]
[1742125080169,0.33573946,595.7,594.37,4.12432513]
[1742125080364,0.33573946,595.7,594.38,4.12431947]
[1742125080569,0.33573946,595.7,594.39,3.7878344]
[1742125080874,0.33573946,595.7,594.4,3.7875834]
[1742125081066,0.33573946,595.7,594.42,0.33646243]
[1742125081272,0.33573946,595.7,594.43,3.7875834]
[1742125081468,0.33573946,595.7,594.44,3.7875834]
[1742125081667,0.33573946,595.7,594.45,3.7875834]
[1742125081871,0.33573946,595.7,594.46,3.7875834]
[1742125082069,0.33573946,595.7,594.47,3.7875834]
[1742125082367,0.33573946,595.7,594.48,3.7875834]
[1742125082564,0.33573946,595.7,594.49,3.7875834]
[1742125082767,0.33573946,595.7,594.44,3.20256368]
[1742125082768,0.33573946,595.7,594.5,3.7875834]
[1742125083064,0.33573946,595.7,594.51,3.7875834]
[1742125083271,0.33573946,595.7,594.52,3.7875834]
[1742125083570,0.33573946,595.7,594.53,6.99014708]
[1742125083769,0.33573946,595.7,594.54,6.99014708]
[1742125083966,0.33573946,595.7,594.55,4.12397226]
[1742125084170,0.33573946,595.7,594.56,3.7875834]
[1742125084471,0.33573946,595.7,594.57,7.32543726]
[1742125084670,0.33573946,595.7,594.58,4.12286792]
[1742125084865,0.33573946,595.7,594.59,4.12286226]
[1742125085170,0.33573946,595.7,594.6,4.1228566]
[1742125085365,0.33573946,595.7,594.61,6.98905971]
[1742125085568,0.33573946,595.7,594.62,4.12284529]
[1742125085770,0.33573946,595.7,594.63,7.32502909]
[1742125085968,0.33573946,595.7,594.64,3.16371051]